fUSD/lending_fUSD_20240821
["ID","MTS","AMOUNT","RATE_DAILY","PERIOD"]
[335489813,1724271038526,-309.47911508,0.0001089,2]
[335489814,1724271038536,-2201.68475789,0.0001089,2]
[335489815,1724271038546,-628.45869819,0.0001089,2]
[335489817,1724271038556,-164.28856738,0.0001089,2]
[335489819,1724271038566,-155.0,0.00010899,2]
[335489821,1724271038578,-499.36766,0.000109,2]
[335489823,1724271038594,-174.17506023,0.000109,2]
[335489825,1724271038604,-400.0,0.000109,3]
[335489827,1724271038614,-7500.0,0.000109,2]
[335489829,1724271038623,-162.45254013,0.000109,2]
[335489831,1724271038633,-162.45254013,0.000109,2]
[335489833,1724271038642,-162.45254013,0.000109,2]
[335489834,1724271038652,-162.45254013,0.000109,2]
[335489836,1724271038661,-162.45254013,0.000109,2]
[335489838,1724271038670,-216.435561,0.000109,2]
[335489840,1724271038679,-399.1335363,0.000109,2]
[335489842,1724271038689,-241.94907099,0.000109,2]
[335489844,1724271038698,-500.0,0.00010945,2]
[335489846,1724271038707,-500.0,0.00010945,2]
[335489848,1724271038717,-500.0,0.00010945,2]
[335489850,1724271038727,-500.0,0.00010945,2]
[335489852,1724271038736,-500.0,0.00010945,2]
[335489854,1724271038746,-383.2131,0.00010945,2]
[335489856,1724271038755,-500.0,0.00010945,2]
[335489858,1724271038765,-500.0,0.00010945,2]
[335489860,1724271038775,-500.0,0.00010945,2]
[335489862,1724271038784,-296.23657562,0.00010945,2]
[335489866,1724271038812,-203.76342438,0.00010945,2]
[335489868,1724271038829,-500.0,0.00010945,2]
[335489870,1724271038839,-500.0,0.00010945,2]
[335489872,1724271038847,-500.0,0.00010945,2]
[335489873,1724271038856,-500.0,0.00010945,2]
[335489875,1724271038865,-504.6286,0.00010945,2]
[335489877,1724271038875,-500.0,0.00010958,2]
[335489879,1724271038884,-232.34168072,0.00010958,2]
[335489881,1724271038893,-500.0,0.00010958,2]
[335489883,1724271038902,-500.0,0.00010958,2]
[335489885,1724271038911,-580.3022538,0.00010958,2]
[335489887,1724271038920,-500.0,0.00010958,2]
[335489889,1724271038930,-500.0,0.00010958,2]
[335489891,1724271038939,-500.0,0.00010958,2]
[335489893,1724271038949,-500.0,0.00010958,2]
[335489895,1724271038959,-500.0,0.00010958,2]
[335489897,1724271038968,-221.23,0.00010959,2]
[335489899,1724271038978,-2781.54,0.00010959,2]
[335489901,1724271038987,-250.0,0.00010959,2]
[335489903,1724271038996,-150.0,0.00010959,2]
[335489905,1724271039005,-1500.0,0.00010959,2]
[335489907,1724271039015,-149.60841529,0.00010959,2]
[335489909,1724271039026,-2348.40046312,0.00010959,2]
[335489911,1724271039038,-6903.18681663,0.00010959,2]
[335489913,1724271039050,-441.27430496,0.00010959,2]
[335489915,1724271039059,-846.04,0.00010959,2]
[335489917,1724271039070,-2000.0,0.00010959,2]
[335489919,1724271039079,-200.0,0.00010973,2]
[335489921,1724271039089,-200.0,0.00010973,2]
[335489923,1724271039098,-155.0,0.00010989,2]
[335489925,1724271039107,-454.75953035,0.00010989,2]
[335489927,1724271039118,-155.0,0.00010989,2]
[335489929,1724271039127,-324.16387774,0.0001099,2]
[335489931,1724271039136,-324.16387774,0.0001099,2]
[335489933,1724271039146,-324.16387774,0.0001099,2]
[335489935,1724271039155,-527.19740296,0.00010993,2]
[335489937,1724271039164,-388.23479391,0.00010997,2]
[335489939,1724271039174,-3105.87835128,0.00010997,2]
[335489941,1724271039183,-14098.2091314,0.00010998,2]
[335489943,1724271039192,-1031.54405097,0.00010999,3]
[335489945,1724271039201,-150.01,0.00010999,2]
[335489947,1724271039211,-5183.48397974,0.00010999,2]
[335489949,1724271039220,-150.0,0.00010999,2]
[335489950,1724271039229,-420.0,0.00010999,2]
[335489951,1724271039369,-337435.67562415,0.00011,2]
[335489952,1724271039380,-407974.24241981,0.00011,2]
[335489953,1724271039393,-5407.33275651,0.00011,2]
[335489954,1724271039405,-287.75747,0.00011,2]
[335489955,1724271039416,-283.83287331,0.00011,2]
[335489968,1724271040453,-150.0,0.00010838,2]
[335489969,1724271040463,-1353.33754165,0.00011,2]
[335489970,1724271040665,-470.73536654,0.00011,2]
[335489971,1724271040676,-3594.85116031,0.00011,2]
[335489972,1724271040687,-15864.06740538,0.00011,2]
[335490126,1724271043251,-21144.51113657,0.00011,2]
[335490127,1724271043530,-3553.94109927,0.00011,2]
[335490128,1724271043542,-5458.00267613,0.00011,2]
[335490129,1724271043554,-3417.63570688,0.00011,2]
[335490130,1724271043574,-264.16012123,0.00011,2]
[335490149,1724271046416,-359.82502915,0.00011,2]
[335490150,1724271046429,-23997.25477325,0.00011,2]
[335490151,1724271046588,-1730377.82371135,0.00011,2]
[335490152,1724271046600,-3645321.83255571,0.00011,2]
[335490153,1724271046612,-514504.28538006,0.00011,2]
[335490154,1724271046624,-500.0,0.00011,2]
[335490155,1724271046636,-500.0,0.00011,2]
[335490156,1724271046648,-3449649.88130049,0.00011,2]
[335490157,1724271046660,-2183686.71902131,0.00011,2]
[335490158,1724271046672,-485.07840464,0.00011,2]
[335490159,1724271046683,-181.97999253,0.00011,2]
[335490160,1724271046695,-170.6347928,0.00011,2]
[335490161,1724271046708,-162.85453106,0.00011,2]
[335490162,1724271046720,-413.35824992,0.00011,2]
[335490163,1724271046732,-1051.05102404,0.00011,2]
[335490164,1724271046744,-363.44434054,0.00011,2]
[335490166,1724271046756,-151.0,0.00011,2]
[335490168,1724271046768,-250.0,0.00011,2]
[335490170,1724271046780,-151.0,0.00011,2]
[335490171,1724271046791,-151.0,0.00011,2]
[335490172,1724271046803,-2000.0,0.00011,2]
[335490173,1724271046815,-200.0,0.00011,2]
[335490174,1724271046828,-152.005159,0.00011,2]
[335490175,1724271046840,-151.0,0.00011,2]
[335490176,1724271046853,-151.0,0.00011,2]
[335490177,1724271046865,-151.0,0.00011,2]
[335490178,1724271046878,-151.0,0.00011,2]
[335490179,1724271046891,-151.0,0.00011,2]
[335490180,1724271046904,-151.0,0.00011,2]
[335490181,1724271046918,-170.232978,0.00011,2]
[335490182,1724271046930,-151.0,0.00011,2]
[335490183,1724271046942,-151.0,0.00011,2]
[335490184,1724271046954,-151.0,0.00011,2]
[335490185,1724271046966,-450.0,0.00011,2]
[335490186,1724271046978,-450.0,0.00011,2]
[335490187,1724271046991,-450.0,0.00011,2]
[335490188,1724271047002,-450.0,0.00011,2]
[335490189,1724271047013,-450.0,0.00011,2]
[335490190,1724271047025,-450.0,0.00011,2]
[335490191,1724271047037,-151.0,0.00011,2]
[335490192,1724271047048,-450.0,0.00011,2]
[335490193,1724271047061,-151.0,0.00011,2]
[335490194,1724271047072,-450.0,0.00011,2]
[335490195,1724271047086,-151.465044,0.00011,2]
[335490196,1724271047097,-151.0,0.00011,2]
[335490197,1724271047110,-151.0,0.00011,2]
[335490198,1724271047121,-151.0,0.00011,2]
[335490199,1724271047133,-151.0,0.00011,2]
[335490200,1724271047144,-151.0,0.00011,2]
[335490201,1724271047155,-151.0,0.00011,2]
[335490202,1724271047167,-151.0,0.00011,2]
[335490203,1724271047178,-151.0,0.00011,2]
[335490204,1724271047190,-151.0,0.00011,2]
[335490205,1724271047201,-151.0,0.00011,2]
[335490206,1724271047213,-151.0,0.00011,2]
[335490207,1724271047224,-282.568686,0.00011,2]
[335490208,1724271047235,-151.0,0.00011,2]
[335490209,1724271047247,-151.380239,0.00011,2]
[335490210,1724271047259,-151.0,0.00011,2]
[335490211,1724271047273,-151.0,0.00011,2]
[335490212,1724271047284,-151.0,0.00011,2]
[335490213,1724271047296,-151.0,0.00011,2]
[335490214,1724271047308,-151.0,0.00011,2]
[335490215,1724271047317,-151.0,0.00011,2]
[335490216,1724271047329,-151.0,0.00011,2]
[335490217,1724271047339,-151.0,0.00011,2]
[335490218,1724271047349,-151.0,0.00011,2]
[335490219,1724271047359,-151.0,0.00011,2]
[335490220,1724271047369,-151.0,0.00011,2]
[335490221,1724271047379,-151.0,0.00011,2]
[335490222,1724271047389,-151.0,0.00011,2]
[335490223,1724271047399,-151.0,0.00011,2]
[335490224,1724271047409,-151.0,0.00011,2]
[335490226,1724271047572,-151.0,0.00011,2]
[335490227,1724271047655,-200.0,0.00011,2]
[335490228,1724271047669,-151.0,0.00011,2]
[335490229,1724271047678,-151.0,0.00011,2]
[335490230,1724271047691,-151.0,0.00011,2]
[335490231,1724271047701,-151.0,0.00011,2]
[335490232,1724271047711,-243.419466,0.00011,2]
[335490233,1724271047720,-151.0,0.00011,2]
[335490234,1724271047729,-151.0,0.00011,2]
[335490235,1724271047739,-151.0,0.00011,2]
[335490236,1724271047748,-151.897856,0.00011,2]
[335490237,1724271047757,-151.209086,0.00011,2]
[335490238,1724271047766,-151.0,0.00011,2]
[335490239,1724271047775,-204.276609,0.00011,2]
[335490240,1724271047784,-167.901428,0.00011,2]
[335490241,1724271047793,-151.0,0.00011,2]
[335490242,1724271047802,-151.0,0.00011,2]
[335490243,1724271047812,-151.0,0.00011,2]
[335490244,1724271047822,-151.0,0.00011,2]
[335490245,1724271047832,-151.0,0.00011,2]
[335490246,1724271047841,-151.0,0.00011,2]
[335490247,1724271047850,-151.077315,0.00011,2]
[335490248,1724271047860,-151.0,0.00011,2]
[335490249,1724271047869,-151.0,0.00011,2]
[335490250,1724271047879,-151.0,0.00011,2]
[335490251,1724271047888,-168.403696,0.00011,2]
[335490252,1724271047898,-151.0,0.00011,2]
[335490253,1724271047908,-151.0,0.00011,2]
[335490254,1724271047917,-151.0,0.00011,2]
[335490255,1724271047926,-151.0,0.00011,2]
[335490256,1724271047936,-151.0,0.00011,2]
[335490257,1724271047945,-246.88479,0.00011,2]
[335490258,1724271047954,-151.0,0.00011,2]
[335490259,1724271047964,-198.320353,0.00011,2]
[335490260,1724271047973,-151.0,0.00011,2]
[335490261,1724271047982,-151.0,0.00011,2]
[335490262,1724271047991,-151.0,0.00011,2]
[335490263,1724271048000,-151.0,0.00011,2]
[335490264,1724271048010,-151.0,0.00011,2]
[335490265,1724271048019,-151.0,0.00011,2]
[335490266,1724271048029,-151.0,0.00011,2]
[335490267,1724271048039,-151.0,0.00011,2]
[335490268,1724271048048,-151.0,0.00011,2]
[335490269,1724271048058,-151.0,0.00011,2]
[335490270,1724271048067,-151.104669,0.00011,2]
[335490271,1724271048077,-151.0,0.00011,2]
[335490272,1724271048087,-151.0,0.00011,2]
[335490273,1724271048097,-151.0,0.00011,2]
[335490274,1724271048106,-151.0,0.00011,2]
[335490275,1724271048116,-152.356582,0.00011,2]
[335490276,1724271048126,-151.0,0.00011,2]
[335490277,1724271048135,-151.0,0.00011,2]
[335490278,1724271048144,-297.581208,0.00011,2]
[335490279,1724271048153,-151.0,0.00011,2]
[335490280,1724271048162,-358.0,0.00011,2]
[335490281,1724271048171,-151.732619,0.00011,2]
[335490282,1724271048180,-151.0,0.00011,2]
[335490283,1724271048189,-151.0,0.00011,2]
[335490284,1724271048199,-1000.0,0.00011,2]
[335490285,1724271048208,-151.0,0.00011,2]
[335490286,1724271048217,-151.0,0.00011,2]
[335490287,1724271048226,-169.70839,0.00011,2]
[335490288,1724271048236,-169.70839,0.00011,2]
[335490289,1724271048245,-151.0,0.00011,2]
[335490290,1724271048254,-151.0,0.00011,2]
[335490291,1724271048264,-151.0,0.00011,2]
[335490292,1724271048275,-151.0,0.00011,2]
[335490293,1724271048285,-277.985192,0.00011,2]
[335490294,1724271048295,-151.0,0.00011,2]
[335490295,1724271048305,-151.0,0.00011,2]
[335490296,1724271048315,-151.0,0.00011,2]
[335490297,1724271048324,-268.295384,0.00011,2]
[335490298,1724271048335,-151.0,0.00011,2]
[335490299,1724271048345,-151.0,0.00011,2]
[335490300,1724271048355,-151.0,0.00011,2]
[335490301,1724271048364,-151.0,0.00011,2]
[335490302,1724271048374,-151.0,0.00011,2]
[335490303,1724271048383,-170.623801,0.00011,2]
[335490304,1724271048392,-151.0,0.00011,2]
[335490305,1724271048402,-151.0,0.00011,2]
[335490306,1724271048411,-226.0,0.00011,2]
[335490307,1724271048420,-151.0,0.00011,2]
[335490308,1724271048429,-151.0,0.00011,2]
[335490309,1724271048439,-151.833959,0.00011,2]
[335490310,1724271048448,-151.0,0.00011,2]
[335490311,1724271048458,-151.0,0.00011,2]
[335490312,1724271048468,-151.0,0.00011,2]
[335490313,1724271048477,-151.0,0.00011,2]
[335490314,1724271048487,-292.632919,0.00011,2]
[335490315,1724271048496,-151.0,0.00011,2]
[335490316,1724271048505,-151.0,0.00011,2]
[335490317,1724271048515,-151.0,0.00011,2]
[335490318,1724271048524,-151.0,0.00011,2]
[335490319,1724271048534,-228.82311,0.00011,2]
[335490320,1724271048543,-151.0,0.00011,2]
[335490321,1724271048553,-151.0,0.00011,2]
[335490322,1724271048563,-151.0,0.00011,2]
[335490323,1724271048572,-1590.6477038,0.00011006,2]
[335490324,1724271048584,-3497.7909746,0.00011006,2]
[335490325,1724271048600,-2000.0,0.0001111,2]
[335490326,1724271048610,-200.0,0.0001111,2]
[335490327,1724271048620,-152.79,0.00011133,2]
[335490328,1724271048630,-200.0,0.00011221,2]
[335490329,1724271048640,-636.23237162,0.00011318,2]
[335490330,1724271048650,-411.8166782,0.00011325,2]
[335490331,1724271048661,-200.0,0.00011333,2]
[335490332,1724271048671,-174.17506022,0.000114,2]
[335490333,1724271048682,-461.57874,0.0001144,2]
[335490334,1724271048692,-200.0,0.00011447,2]
[335490335,1724271048702,-4812.0,0.00011465,2]
[335490336,1724271048713,-1000.0,0.00011488,2]
[335490337,1724271048725,-320.30056243,0.00011512,2]
[335490338,1724271048735,-170.32,0.00011516,2]
[335490339,1724271048746,-450.0,0.00011559,2]
[335490340,1724271048756,-450.0,0.00011559,2]
[335490341,1724271048767,-3727.0,0.0001165,2]
[335490342,1724271048778,-1289.016,0.0001165,2]
[335490343,1724271048788,-5847.0,0.0001165,2]
[335490344,1724271048799,-21777.0,0.0001165,2]
[335490345,1724271048809,-289.0,0.0001165,2]
[335490346,1724271048821,-1674.0,0.0001165,2]
[335490347,1724271048841,-169.70839,0.0001165,2]
[335490348,1724271048851,-10000.0,0.00011672,2]
[335490349,1724271048863,-174.17506022,0.000119,2]
[335490350,1724271048873,-794.0,0.00011914,2]
[335490351,1724271048885,-250.0,0.00011995,2]
[335490352,1724271048895,-216.0,0.00011995,2]
[335490353,1724271048905,-266.837,0.00011995,2]
[335490354,1724271048916,-200.0,0.00011995,2]
[335490355,1724271048929,-209.076,0.00011995,2]
[335490356,1724271048942,-163.0,0.00011995,2]
[335490357,1724271048953,-164.03,0.00011995,2]
[335490358,1724271048964,-150.132,0.00011995,2]
[335490359,1724271048974,-155.518,0.00011995,2]
[335490360,1724271048984,-150.166,0.00011995,2]
[335490361,1724271048994,-1100.0,0.00012,2]
[335490362,1724271049004,-165.6,0.00012,2]
[335490363,1724271049014,-165.6,0.00012,2]
[335490364,1724271049025,-165.6,0.00012,2]
[335490365,1724271049035,-165.6,0.00012,2]
[335490366,1724271049045,-165.6,0.00012,2]
[335490367,1724271049055,-165.6,0.00012,2]
[335490368,1724271049064,-165.6,0.00012,2]
[335490369,1724271049074,-165.6,0.00012,2]
[335490370,1724271049087,-165.6,0.00012,2]
[335490371,1724271049097,-165.6,0.00012,2]
[335490372,1724271049107,-165.6,0.00012,2]
[335490373,1724271049116,-165.6,0.00012,2]
[335490374,1724271049126,-165.6,0.00012,2]
[335490375,1724271049136,-165.6,0.00012,2]
[335490376,1724271049146,-1923.0,0.00012026,2]
[335490377,1724271049155,-623.0,0.00012026,2]
[335490378,1724271049165,-1544.0,0.00012026,2]
[335490379,1724271049174,-1258.0,0.00012026,2]
[335490380,1724271049184,-150.0,0.00012026,2]
[335490381,1724271049193,-447.0,0.00012026,2]
[335490382,1724271049203,-810.0,0.00012026,2]
[335490383,1724271049212,-556.0,0.00012026,2]
[335490384,1724271049222,-272.285,0.00012026,2]
[335490385,1724271049232,-207.381,0.00012026,2]
[335490386,1724271049242,-551.0,0.00012026,2]
[335490387,1724271049251,-1896.0,0.00012026,2]
[335490388,1724271049262,-1166.0,0.00012026,2]
[335490389,1724271049273,-251.604,0.00012026,2]
[335490390,1724271049283,-3465.084,0.00012026,2]
[335490391,1724271049292,-764.0,0.00012026,2]
[335490392,1724271049303,-241.69,0.00012044,2]
[335490393,1724271049313,-461.57874,0.0001206,2]
[335490394,1724271049322,-320.30056243,0.00012151,2]
[335490395,1724271049336,-500.0,0.00012328,2]
[335490396,1724271049347,-500.0,0.00012328,2]
[335490397,1724271049359,-152.79,0.0001237,2]
[335490398,1724271049369,-174.17506022,0.000124,2]
[335490399,1724271049379,-265.0,0.0001245,2]
[335490400,1724271049388,-200.0,0.0001247,2]
[335490401,1724271049398,-1668.87,0.000125,2]
[335490402,1724271049408,-250.0,0.000125,2]
[335490403,1724271049418,-250.0,0.000125,2]
[335490404,1724271049428,-250.0,0.000125,2]
[335490405,1724271049437,-250.0,0.000125,2]
[335490406,1724271049447,-250.0,0.000125,2]
[335490407,1724271049457,-447.2,0.000125,2]
[335490408,1724271049467,-794.0,0.00012541,2]
[335490409,1724271049476,-766.54074124,0.00012541,2]
[335490410,1724271049486,-500.0,0.00012602,2]
[335490411,1724271049496,-500.0,0.00012602,2]
[335490412,1724271049506,-14097.73155905,0.00012663,2]
[335490413,1724271049516,-461.57874,0.0001268,2]
[335490414,1724271049526,-200.0,0.0001269,2]
[335490415,1724271049536,-485.62,0.00012713,2]
[335490416,1724271049546,-450.0,0.0001273,2]
[335490417,1724271049555,-450.0,0.0001273,2]
[335490418,1724271049565,-1000.0,0.00012764,2]
[335490419,1724271049575,-265.0,0.0001279,2]
[335490420,1724271049586,-320.30056243,0.0001279,2]
[335490421,1724271049596,-174.17506022,0.000129,2]
[335490422,1724271049606,-200.0,0.0001291,2]
[335490423,1724271049616,-180.26604378,0.00012938,2]
[335490424,1724271049626,-169.70839,0.00013075,2]
[335490425,1724271049636,-14097.73155905,0.00013075,2]
[335490426,1724271049646,-265.0,0.0001313,2]
[335490427,1724271049656,-200.0,0.0001314,2]
[335490428,1724271049666,-170.32,0.00013161,2]
[335490429,1724271049676,-8151.15132475,0.000132,2]
[335490430,1724271049685,-794.0,0.00013201,2]
[335490431,1724271049695,-794.0,0.00013201,2]
[335490432,1724271049705,-794.0,0.00013201,2]
[335490433,1724271049715,-241.69,0.00013249,2]
[335490434,1724271049724,-461.57874,0.0001331,2]
[335490435,1724271049735,-200.0,0.0001336,2]
[335490436,1724271049744,-174.17506022,0.000134,2]
[335490437,1724271049754,-320.30056243,0.00013429,2]
[335490438,1724271049764,-265.0,0.0001347,2]
[335490439,1724271049774,-14097.73155905,0.00013488,2]
[335490440,1724271049784,-66613.0,0.000135,2]
[335490441,1724271049794,-450.0,0.0001351,2]
[335490442,1724271049804,-450.0,0.0001351,2]
[335490443,1724271049814,-200.0,0.0001358,2]
[335490444,1724271049824,-401.51974171,0.000136,2]
[335490445,1724271049835,-152.79,0.00013607,2]
[335490446,1724271049845,-200.0,0.00013673,2]
[335490447,1724271049854,-500.0,0.00013698,2]
[335490448,1724271049864,-500.0,0.00013698,2]
[335490449,1724271049874,-500.0,0.00013698,2]
[335490450,1724271049883,-500.0,0.00013698,2]
[335490451,1724271049893,-500.0,0.00013698,2]
[335490452,1724271049902,-500.0,0.00013698,2]
[335490453,1724271049911,-450.0,0.00013698,2]
[335490454,1724271049921,-450.0,0.00013698,2]
[335490455,1724271049931,-500.0,0.00013698,2]
[335490456,1724271049940,-500.0,0.00013698,2]
[335490457,1724271049949,-450.0,0.00013698,2]
[335490458,1724271049959,-450.0,0.00013698,2]
[335490459,1724271049968,-500.0,0.00013698,2]
[335490460,1724271049977,-500.0,0.00013698,2]
[335490461,1724271049987,-506.79130337,0.00013698,2]
[335490462,1724271049996,-512.03412458,0.00013698,2]
[335490463,1724271050006,-517.01210594,0.00013698,2]
[335490464,1724271050016,-500.0,0.00013698,2]
[335490465,1724271050026,-500.0,0.00013698,2]
[335490466,1724271050035,-500.0,0.00013698,2]
[335490467,1724271050045,-500.0,0.00013698,2]
[335490468,1724271050054,-500.0,0.00013698,2]
[335490469,1724271050063,-319.63733268,0.00013698,2]
[335490470,1724271050073,-500.0,0.00013698,2]
[335490471,1724271050083,-500.0,0.00013698,2]
[335490472,1724271050093,-500.0,0.00013698,2]
[335490473,1724271050102,-500.0,0.00013698,2]
[335490474,1724271050112,-500.0,0.00013698,2]
[335490475,1724271050121,-849.75,0.00013698,2]
[335490476,1724271050131,-500.0,0.00013698,2]
[335490477,1724271050141,-553.65,0.00013698,2]
[335490478,1724271050151,-500.0,0.00013698,2]
[335490479,1724271050160,-500.0,0.00013698,2]
[335490480,1724271050170,-500.0,0.00013698,2]
[335490481,1724271050180,-2476.81,0.00013698,2]
[335490482,1724271050189,-333.04169692,0.00013698,2]
[335490483,1724271050199,-500.0,0.00013698,2]
[335490484,1724271050208,-500.0,0.00013698,2]
[335490485,1724271050217,-819.63,0.00013698,2]
[335490486,1724271050227,-500.0,0.00013698,2]
[335490487,1724271050237,-500.0,0.00013698,2]
[335490488,1724271050247,-414.82408258,0.00013698,2]
[335490489,1724271050256,-500.0,0.00013698,2]
[335490490,1724271050267,-500.0,0.00013698,2]
[335490491,1724271050279,-500.0,0.00013698,2]
[335490492,1724271050288,-500.0,0.00013698,2]
[335490493,1724271050298,-500.0,0.00013698,2]
[335490494,1724271050308,-953.0,0.00013698,2]
[335490495,1724271050317,-500.0,0.00013698,2]
[335490496,1724271050327,-500.0,0.00013698,2]
[335490497,1724271050343,-500.0,0.00013698,2]
[335490498,1724271050354,-573.16423982,0.00013698,2]
[335490499,1724271050364,-500.0,0.00013698,2]
[335490500,1724271050373,-500.0,0.00013698,2]
[335490501,1724271050384,-500.0,0.00013698,2]
[335490502,1724271050394,-553.4,0.00013698,2]
[335490503,1724271050403,-500.0,0.00013698,2]
[335490504,1724271050413,-2372.5,0.00013698,2]
[335490505,1724271050422,-1887.65,0.00013698,2]
[335490506,1724271050432,-500.0,0.00013698,2]
[335490507,1724271050441,-500.0,0.00013698,2]
[335490508,1724271050451,-512.63646757,0.00013698,2]
[335490509,1724271050460,-500.0,0.00013698,2]
[335490510,1724271050469,-838.39,0.00013698,2]
[335490511,1724271050479,-500.0,0.00013698,2]
[335490512,1724271050488,-529.7187017,0.00013698,2]
[335490513,1724271050497,-519.3177326,0.00013698,2]
[335490514,1724271050507,-942.96,0.00013698,2]
[335490515,1724271050516,-500.0,0.00013698,2]
[335490516,1724271050526,-2031.17,0.00013698,2]
[335490517,1724271050535,-500.0,0.00013698,2]
[335490518,1724271050546,-500.0,0.00013698,2]
[335490519,1724271050556,-1086.02,0.00013698,2]
[335490520,1724271050566,-500.0,0.00013698,2]
[335490521,1724271050576,-212.65141045,0.00013698,2]
[335490522,1724271050592,-500.0,0.00013698,2]
[335490523,1724271050603,-500.0,0.00013698,2]
[335490524,1724271050612,-500.0,0.00013698,2]
[335490525,1724271050622,-500.0,0.00013698,2]
[335490526,1724271050632,-500.0,0.00013698,2]
[335490527,1724271050641,-500.0,0.00013698,2]
[335490528,1724271050651,-1406.4,0.00013698,2]
[335490529,1724271050660,-500.0,0.00013698,2]
[335490530,1724271050670,-2109.32,0.00013698,2]
[335490531,1724271050679,-500.0,0.00013698,2]
[335490532,1724271050688,-506.39,0.00013698,2]
[335490533,1724271050698,-500.0,0.00013698,2]
[335490534,1724271050708,-500.0,0.00013698,2]
[335490535,1724271050718,-500.0,0.00013698,2]
[335490536,1724271050728,-500.0,0.00013698,2]
[335490537,1724271050737,-633.06,0.00013698,2]
[335490538,1724271050747,-2082.07,0.00013698,2]
[335490539,1724271050756,-500.0,0.00013698,2]
[335490540,1724271050766,-1272.91,0.00013698,2]
[335490541,1724271050775,-877.63,0.00013698,2]
[335490542,1724271050784,-500.0,0.00013698,2]
[335490543,1724271050794,-2827.83,0.00013698,2]
[335490544,1724271050803,-500.0,0.00013698,2]
[335490545,1724271050813,-500.0,0.00013698,2]
[335490546,1724271050822,-679.05,0.00013698,2]
[335490547,1724271050951,-2900.23,0.00013698,2]
[335490548,1724271050966,-3837.38,0.00013698,2]
[335490549,1724271050976,-1312.2,0.00013698,2]
[335490550,1724271050985,-500.0,0.00013698,2]
[335490551,1724271050994,-5651.96,0.00013698,2]
[335490552,1724271051004,-2385.71,0.00013698,2]
[335490553,1724271051013,-2073.03,0.00013698,2]
[335490554,1724271051023,-727.0,0.00013698,2]
[335490555,1724271051032,-4428.25,0.00013698,2]
[335490556,1724271051042,-4040.23,0.00013698,2]
[335490557,1724271051051,-500.0,0.00013698,2]
[335490558,1724271051060,-500.0,0.00013698,2]
[335490559,1724271051070,-1758.36,0.00013698,2]
[335490560,1724271051080,-8908.85,0.00013698,2]
[335490561,1724271051091,-403.53032826,0.00013698,2]
[335490562,1724271051100,-2776.63,0.00013698,2]
[335490563,1724271051109,-169.70839,0.00013698,2]
[335490564,1724271051119,-169.70839,0.00013698,2]
[335490565,1724271051128,-1849.24,0.00013698,2]
[335490566,1724271051137,-169.70838,0.00013698,2]